bitfinex/quotes_BTCUSD_20260126
["timestamp","ask_amount","ask_price","bid_price","bid_amount"]
[1769392798592,0.27321041,87686.0,87670.0,0.22012844]
[1769392798797,0.27321041,87686.0,87671.0,0.01140628]
[1769392799007,0.27321041,87686.0,87670.0,0.22012844]
[1769392799210,0.19670509,87687.0,87672.0,1.05305759]
[1769392799430,0.19670509,87692.0,87677.0,0.01140549]
[1769392799649,0.19670509,87692.0,87676.0,0.01140562]
[1769392799650,0.27971639,87691.0,87676.0,0.01140562]
[1769392800061,0.27971639,87691.0,87681.0,0.01140497]
[1769392800257,0.27971639,87691.0,87675.0,1.3001098]
[1769392800465,0.14191816,87699.0,87687.0,0.01140419]
[1769392800700,0.14191816,87699.0,87675.0,0.02739273]
[1769392800701,0.17524,87703.0,87686.0,0.21965805]
[1769392800905,0.17524,87703.0,87691.0,0.01140367]
[1769392801255,0.17524,87703.0,87688.0,1.05305759]
[1769392801504,0.17524,87703.0,87670.0,0.42653792]
[1769392801505,0.17524,87703.0,87674.0,0.20825373]
[1769392801643,0.01140354,87692.0,87670.0,0.0004683]
[1769392801845,0.27971639,87689.0,87670.0,0.0004683]
[1769392802041,0.27971639,87680.0,87670.0,0.0004683]
[1769392802255,0.42606962,87690.0,87660.0,0.02739273]
[1769392802256,0.19670509,87677.0,87660.0,0.02739273]
[1769392802478,0.19670509,87677.0,87658.0,0.02518383]
[1769392802479,0.27925277,87676.0,87658.0,0.0621538]
[1769392802689,0.06404198,87676.0,87659.0,0.11228973]
[1769392802896,0.06404198,87676.0,87656.0,0.20825373]
[1769392803155,0.06404198,87676.0,87658.0,0.01140797]
[1769392803286,0.06404198,87676.0,87659.0,0.01140784]
[1769392803492,0.06404198,87676.0,87660.0,0.01140771]
[1769392803894,0.19717243,87677.0,87666.0,0.01140693]
[1769392804119,0.00046734,87677.0,87672.0,1.06873972]
[1769392804323,0.00027267,87677.0,87673.0,1.31724143]
[1769392804832,0.00027267,87677.0,87667.0,0.0114068]
[1769392804833,0.00027267,87677.0,87674.0,0.24850171]
[1769392805414,0.06619409,87689.0,87675.0,0.01389615]
[1769392805608,0.06619409,87689.0,87675.0,0.01403654]
[1769392806534,0.06646403,87688.0,87675.0,0.01403654]
[1769392807155,0.06186117,87688.0,87675.0,0.01403654]
[1769392807352,0.0582082,87688.0,87675.0,0.01403654]
[1769392807556,0.05701139,87702.0,87675.0,0.01403654]
[1769392807848,0.01140198,87704.0,87675.0,0.01403654]
[1769392807849,0.23531281,87699.0,87678.0,0.24850171]
[1769392808045,0.08749364,87701.0,87678.0,0.24850171]
[1769392808046,0.23531281,87698.0,87679.0,0.01389769]
[1769392808192,0.05829076,87696.0,87679.0,0.01389769]
[1769392808392,0.29360357,87696.0,87679.0,0.01389769]
[1769392808654,0.05829076,87695.0,87679.0,0.01389769]
[1769392809289,0.01140224,87702.0,87679.0,0.01389769]
[1769392809290,0.23531281,87702.0,87683.0,1.06873972]
[1769392809503,0.23531281,87702.0,87680.0,0.0114051]
[1769392809504,0.23531281,87702.0,87684.0,1.31724143]
[1769392809880,0.09484055,87701.0,87684.0,0.24850171]
[1769392810079,0.09484055,87700.0,87684.0,0.24850171]
[1769392810773,0.33015336,87699.0,87679.0,1.31724143]
[1769392810944,0.33015336,87699.0,87680.0,0.0138649]
[1769392811463,0.33015336,87699.0,87680.0,1.33110633]
[1769392811759,0.33015336,87699.0,87682.0,1.06873972]
[1769392811959,0.33015336,87699.0,87682.0,1.08014456]
[1769392812213,0.33015336,87699.0,87685.0,0.01140445]
[1769392812214,0.09484055,87699.0,87685.0,0.01140445]
[1769392812517,0.09484055,87699.0,87685.0,1.31724143]
[1769392813087,0.23531281,87702.0,87685.0,1.31724143]
[1769392813308,0.09484055,87701.0,87685.0,1.31724143]
[1769392813505,0.09484055,87701.0,87686.0,0.20254123]
[1769392813715,0.09484055,87700.0,87687.0,0.11228457]
[1769392813985,0.09484055,87700.0,87688.0,0.11228457]
[1769392814190,0.09484055,87700.0,87689.0,0.11228457]
[1769392814392,0.09484055,87700.0,87690.0,0.11228457]
[1769392814604,0.09484055,87700.0,87691.0,0.11228457]
[1769392814788,0.09484055,87700.0,87692.0,0.11228457]
[1769392814943,0.09484055,87700.0,87693.0,0.11228457]
[1769392815130,0.09484055,87700.0,87694.0,0.11228457]
[1769392815343,0.17524,87703.0,87679.0,0.09025666]
[1769392815344,0.97285989,87699.0,87679.0,0.09025666]
[1769392815542,0.17524,87703.0,87668.0,0.08391728]
[1769392815543,0.00534747,87687.0,87668.0,0.08391728]
[1769392815754,0.00534747,87674.0,87655.0,0.13538499]
[1769392815987,0.23531281,87671.0,87651.0,0.13538499]
[1769392816202,0.23531281,87666.0,87648.0,0.13538499]
[1769392816403,0.23531281,87665.0,87650.0,1.08014873]
[1769392816602,0.243908,87683.0,87665.0,0.01]
[1769392816809,0.41910826,87681.0,87665.0,0.01]
[1769392817007,0.40770329,87681.0,87665.0,0.01]
[1769392817872,0.40770329,87681.0,87666.0,0.01157806]
[1769392818220,0.04564,87684.0,87666.0,0.01140693]
[1769392818446,0.04564,87684.0,87667.0,0.01281008]
[1769392818617,0.04564,87684.0,87668.0,0.01140667]
[1769392818821,0.04564,87684.0,87669.0,0.02421632]
[1769392819031,0.04564,87684.0,87669.0,0.01280978]
[1769392819679,0.04564,87684.0,87668.0,0.01280978]
[1769392819882,0.04564,87684.0,87667.0,0.0128103]
[1769392820662,0.04564,87684.0,87668.0,0.24465522]
[1769392820862,0.04564,87684.0,87669.0,0.01281179]
[1769392822193,0.29564,87684.0,87668.0,0.24465522]
[1769392824191,0.29564,87684.0,87669.0,0.01140654]
[1769392824387,0.29564,87684.0,87669.0,0.25606176]
[1769392824607,0.28945814,87684.0,87669.0,0.25606176]
[1769392824810,0.28945814,87684.0,87670.0,0.24465522]
[1769392826121,0.30086272,87684.0,87670.0,0.24465522]
[1769392826293,0.30086272,87684.0,87664.0,1.10265053]
[1769392826294,0.01145831,87682.0,87665.0,0.24465522]
[1769392826526,0.01140497,87681.0,87665.0,0.24465522]
[1769392826722,0.01145831,87682.0,87665.0,0.24465522]
[1769392826933,5.347e-05,87682.0,87665.0,0.24465522]
[1769392827134,0.23250329,87682.0,87665.0,0.24465522]
[1769392827445,5.347e-05,87681.0,87665.0,0.24465522]
[1769392827846,0.01145844,87681.0,87665.0,0.24465522]
[1769392828049,0.05702633,87679.0,87665.0,0.24465522]
[1769392828293,0.23250329,87672.0,87649.0,0.01140914]
[1769392828501,0.0405765,87667.0,87648.0,0.25606449]
[1769392828685,5.347e-05,87666.0,87649.0,0.24465522]
[1769392830491,0.0941783,87667.0,87649.0,0.24465522]
[1769392830691,0.0941783,87667.0,87650.0,1.34730575]
[1769392831034,0.0941783,87667.0,87651.0,0.24465522]
[1769392831341,5.347e-05,87667.0,87651.0,0.24465522]
[1769392831917,0.01140693,87666.0,87646.0,0.0003379]
[1769392832118,0.09278882,87665.0,87646.0,0.0003379]
[1769392832338,0.01140719,87664.0,87646.0,0.24499312]
[1769392832497,5.347e-05,87663.0,87646.0,0.24499312]
[1769392832702,0.01140745,87662.0,87646.0,0.24499312]
[1769392833254,5.347e-05,87660.0,87646.0,0.0003379]
[1769392833455,0.0114081,87657.0,87646.0,0.0003379]
[1769392833661,5.347e-05,87657.0,87646.0,0.0003379]
[1769392834522,0.09613292,87655.0,87626.0,0.01141213]
[1769392834727,0.09565283,87649.0,87628.0,0.25065261]
[1769392834930,0.00821867,87648.0,87628.0,0.25065261]
[1769392835109,0.00821867,87648.0,87628.0,1.09080166]
[1769392835427,0.00821867,87648.0,87630.0,0.25065261]
[1769392835637,0.00821867,87648.0,87631.0,0.25065261]
[1769392835772,0.00821867,87648.0,87628.0,0.01141187]
[1769392835773,0.09518088,87654.0,87633.0,0.25065261]
[1769392835970,0.00821867,87653.0,87635.0,0.25065261]
[1769392836204,0.00821867,87653.0,87636.0,0.27347428]
[1769392836369,0.00821867,87653.0,87636.0,0.25065261]
[1769392836790,0.00821867,87653.0,87637.0,0.25065261]
[1769392836976,0.00014005,87657.0,87641.0,1.07938979]
[1769392837175,0.00014005,87657.0,87645.0,0.25065261]
[1769392837583,0.00014005,87657.0,87647.0,0.25065261]
[1769392837882,0.00014005,87657.0,87649.0,0.25065261]
[1769392842497,0.00821867,87656.0,87638.0,1.07938979]
[1769392842697,0.00821867,87656.0,87639.0,0.2734735]
[1769392842974,0.09181141,87656.0,87633.0,0.25065261]
[1769392843175,0.00821867,87652.0,87633.0,0.25065261]
[1769392843369,0.00821867,87649.0,87633.0,0.25065261]
[1769392843615,0.00821867,87647.0,87633.0,0.25065261]
[1769392844567,0.3412643,87650.0,87635.0,0.25065261]
[1769392844790,0.01140693,87666.0,87644.0,0.25065261]
[1769392844997,0.01140693,87666.0,87647.0,1.07938979]
[1769392845197,0.01140719,87664.0,87648.0,0.25065261]
[1769392845498,0.35267201,87660.0,87648.0,0.25065261]
[1769392845683,0.01962638,87660.0,87648.0,0.25065261]
[1769392846762,0.01140784,87659.0,87648.0,0.25065261]
[1769392846965,0.01140732,87663.0,87648.0,1.3300424]
[1769392847124,0.01962612,87662.0,87648.0,0.25065261]
[1769392847543,0.01140758,87661.0,87648.0,0.25065261]
[1769392848110,0.01140771,87660.0,87648.0,0.25065261]
[1769392848491,0.01962612,87662.0,87648.0,0.25065261]
[1769392848649,0.01140758,87661.0,87648.0,0.25065261]
[1769392849032,0.01140771,87660.0,87648.0,0.25065261]
[1769392849233,0.00821867,87662.0,87648.0,0.25065261]
[1769392850972,0.11047255,87667.0,87648.0,0.25065261]
[1769392851565,0.00821867,87663.0,87648.0,0.25065261]
[1769392852585,0.01962599,87663.0,87648.0,0.25065261]
[1769392852806,0.01962599,87663.0,87634.0,0.01141109]
[1769392852807,0.83186682,87648.0,87627.0,1.07938979]
[1769392853016,0.00821867,87646.0,87628.0,0.25065261]
[1769392853218,0.00821867,87646.0,87628.0,1.07938979]
[1769392853392,0.00821867,87646.0,87629.0,0.25065261]
[1769392853596,0.00821867,87646.0,87629.0,1.3300424]
[1769392853805,0.24148404,87641.0,87627.0,0.0001941]
[1769392854004,0.00821867,87640.0,87627.0,0.0001941]
[1769392854183,0.00821867,87640.0,87620.0,1.07972239]
[1769392854184,0.0001941,87627.0,87620.0,0.0003326]
[1769392854700,0.00821867,87633.0,87620.0,0.0003326]
[1769392855049,0.01962989,87633.0,87620.0,0.0003326]
[1769392855202,0.00821867,87633.0,87620.0,0.0003326]
[1769392855403,0.01962989,87633.0,87620.0,0.00079994]
[1769392855613,0.24148404,87630.0,87620.0,0.00079994]
[1769392855969,0.42645955,87640.0,87608.0,0.02226029]
[1769392855970,0.00079994,87620.0,87608.0,0.02226029]
[1769392856607,0.00287867,87618.0,87608.0,0.02226029]
[1769392856818,0.00287867,87618.0,87603.0,0.02226029]
[1769392857028,0.01429184,87618.0,87603.0,0.02226029]
[1769392857237,0.00287867,87618.0,87602.0,1.3300424]
[1769392857475,0.01429184,87618.0,87602.0,1.3300424]
[1769392857689,0.00287867,87618.0,87602.0,1.3300424]
[1769392858111,0.01429184,87618.0,87602.0,1.3300424]
[1769392858371,0.01429184,87618.0,87602.0,0.25065261]
[1769392858372,0.00287867,87617.0,87602.0,0.25065261]
[1769392858565,0.24148404,87617.0,87602.0,0.25065261]
[1769392858768,0.00287867,87616.0,87602.0,0.25065261]
[1769392859325,0.24148404,87617.0,87603.0,1.07938979]
[1769392859544,0.00287867,87621.0,87603.0,1.07938979]
[1769392859890,0.00287867,87621.0,87603.0,1.3300424]
[1769392860298,0.24148404,87623.0,87604.0,0.02017275]
[1769392860450,0.24148404,87623.0,87606.0,0.25065261]
[1769392860636,0.24148404,87623.0,87607.0,0.27196613]
[1769392860846,0.01141265,87622.0,87607.0,0.25065261]
[1769392861045,0.24148404,87623.0,87607.0,0.25065261]
[1769392861655,0.01141161,87630.0,87606.0,1.07938979]
[1769392861656,0.01141109,87634.0,87612.0,0.25065261]
[1769392861856,0.01141187,87628.0,87613.0,0.0190293]
[1769392862082,0.00287867,87623.0,87605.0,0.25065261]
[1769392862250,0.09541071,87625.0,87606.0,1.07938979]
[1769392862453,0.01141304,87619.0,87607.0,0.02019149]
[1769392862709,0.10026164,87617.0,87604.0,0.0001399]
[1769392862910,0.00287867,87616.0,87604.0,0.25079251]
[1769392863070,0.00287867,87621.0,87605.0,0.02056523]
[1769392863482,0.00287867,87621.0,87605.0,0.24471117]
[1769392863700,0.00287867,87621.0,87606.0,0.26552527]
[1769392863892,0.22821411,87639.0,87606.0,0.24471117]
[1769392864051,0.01141317,87618.0,87606.0,0.24471117]
[1769392864251,0.01141304,87619.0,87606.0,0.24471117]
[1769392864537,0.06847608,87622.0,87606.0,0.24471117]
[1769392864671,0.01141239,87624.0,87606.0,0.24471117]
[1769392864868,0.01141252,87623.0,87606.0,0.24471117]
[1769392865090,0.22822731,87632.0,87604.0,0.0001399]
[1769392865091,0.01,87606.0,87604.0,0.0001399]
[1769392865405,0.01141461,87607.0,87604.0,0.0001399]
[1769392866136,0.01141448,87608.0,87604.0,0.0001399]
[1769392866305,0.01141461,87607.0,87604.0,0.0001399]
[1769392866507,0.01141448,87608.0,87604.0,0.0001399]
[1769392866822,0.06848701,87608.0,87604.0,0.0001399]
[1769392867222,0.01141461,87607.0,87604.0,0.0001399]
[1769392867632,0.06849145,87603.0,87600.0,0.0003326]
[1769392867944,0.01141513,87603.0,87600.0,0.0003326]
[1769392868881,0.82217665,87602.0,87587.0,0.0002]
[1769392869069,0.01141643,87593.0,87587.0,0.0002]
[1769392869209,0.00822177,87592.0,87587.0,0.0002]
[1769392869409,0.01963846,87591.0,87587.0,0.0002]
[1769392869620,0.00822177,87590.0,87587.0,0.0002]
[1769392870427,0.01963833,87592.0,87587.0,0.0002]
[1769392870874,0.01141669,87591.0,87587.0,0.0002]
[1769392871250,0.00822177,87590.0,87588.0,0.0001]
[1769392871456,0.06530656,87589.0,87588.0,5e-05]
[1769392871717,0.01141734,87586.0,87580.0,3.355e-05]
[1769392872049,0.01141748,87585.0,87580.0,3.355e-05]
[1769392872249,0.01141734,87586.0,87580.0,3.355e-05]
[1769392872648,0.01963872,87589.0,87580.0,3.355e-05]
[1769392872904,0.01141643,87593.0,87580.0,3.355e-05]
[1769392872905,0.01141761,87584.0,87580.0,3.355e-05]
[1769392873117,0.00822177,87582.0,87580.0,3.355e-05]
[1769392873406,0.00822177,87583.0,87580.0,3.355e-05]
[1769392874490,0.00922177,87582.0,87580.0,3.355e-05]
[1769392874905,0.06850345,87587.0,87580.0,3.355e-05]
[1769392874906,0.01141682,87590.0,87580.0,3.355e-05]
[1769392875110,0.01963898,87587.0,87580.0,3.355e-05]
[1769392875289,0.00822177,87588.0,87580.0,3.355e-05]
[1769392875488,0.01963885,87588.0,87580.0,3.355e-05]
[1769392875763,0.01141721,87587.0,87580.0,3.355e-05]
[1769392876034,0.01963938,87584.0,87580.0,3.355e-05]
[1769392876269,0.01963951,87583.0,87580.0,3.355e-05]
[1769392876456,0.00822177,87583.0,87580.0,3.355e-05]
[1769392876662,0.01963951,87583.0,87580.0,3.355e-05]
[1769392876870,0.00822177,87575.0,87563.0,0.0002]
[1769392877113,0.01141813,87580.0,87566.0,1.11224022]
[1769392877318,0.01141813,87580.0,87567.0,0.25299683]
[1769392877467,0.011418,87581.0,87567.0,0.25299683]
[1769392877820,0.01141826,87579.0,87567.0,0.25299683]
[1769392878141,0.01141839,87578.0,87567.0,0.25299683]
[1769392878346,0.05708878,87583.0,87563.0,0.00024808]
[1769392878347,0.01141891,87574.0,87563.0,0.00024808]
[1769392878563,0.0653176,87573.0,87563.0,0.00024808]
[1769392878758,0.01964081,87573.0,87563.0,0.00024808]
[1769392879005,0.00822177,87573.0,87563.0,0.00024808]
[1769392879200,0.01964081,87573.0,87563.0,0.00024808]
[1769392879401,0.00822177,87573.0,87563.0,0.00024808]
[1769392879813,0.01141865,87576.0,87563.0,0.00024808]
[1769392880012,0.01141891,87574.0,87563.0,0.00024808]
[1769392880230,0.0570912,87580.0,87563.0,0.00024808]
[1769392880428,0.01741837,87579.0,87564.0,0.25299683]
[1769392880650,0.01141839,87578.0,87564.0,0.25299683]
[1769392880789,0.01141852,87577.0,87564.0,0.25299683]
[1769392880994,0.01741863,87577.0,87564.0,0.25299683]
[1769392881379,0.01141891,87574.0,87564.0,0.25299683]
[1769392881580,0.0114193,87571.0,87563.0,0.00024808]
[1769392881779,0.01141917,87572.0,87563.0,0.00024808]
[1769392882233,0.0114193,87571.0,87563.0,0.00024808]
[1769392882435,0.01141956,87569.0,87563.0,0.00024808]
[1769392882611,0.0114193,87571.0,87563.0,0.00024808]
[1769392882952,0.01741915,87573.0,87563.0,0.00024808]
[1769392882953,0.01141982,87567.0,87563.0,0.00024808]
[1769392883092,0.01141995,87566.0,87563.0,0.00024808]
[1769392883297,0.01141969,87568.0,87563.0,0.00024808]
[1769392883552,0.01141995,87566.0,87563.0,6.202e-05]
[1769392883915,0.0114206,87561.0,87558.0,0.0002]
[1769392884190,0.0114206,87561.0,87551.0,0.0003646]
[1769392884191,0.05710843,87553.0,87551.0,0.0003646]
[1769392884376,0.01142217,87549.0,87539.0,0.25299683]
[1769392884583,0.00013991,87549.0,87539.0,0.25299683]
[1769392884709,0.01142204,87550.0,87539.0,0.25299683]
[1769392884911,0.04664869,87551.0,87539.0,0.25346291]
[1769392885166,0.01142204,87550.0,87539.0,0.25346291]
[1769392885538,0.01142204,87550.0,87541.0,0.25299683]
[1769392885754,0.06853011,87553.0,87541.0,0.25299683]
[1769392885755,0.01142165,87553.0,87541.0,0.25299683]
[1769392885921,0.01142178,87552.0,87541.0,0.25299683]
[1769392886340,0.05710891,87552.0,87541.0,0.25299683]
[1769392886697,0.01142217,87549.0,87541.0,0.25299683]
[1769392886873,0.01142256,87546.0,87539.0,0.00046608]
[1769392887074,0.01142282,87544.0,87539.0,0.00046608]
[1769392887290,1.14139432,87613.0,87539.0,0.25346291]
[1769392887291,0.01142256,87546.0,87539.0,0.25346291]
[1769392887876,0.01142243,87547.0,87539.0,0.25346291]
[1769392888044,0.01142269,87545.0,87539.0,0.25346291]
[1769392888246,0.01142321,87541.0,87536.0,1.11224022]
[1769392888461,0.00046783,87541.0,87536.0,1.35029023]
[1769392888776,0.01142334,87540.0,87528.0,0.0002]
[1769392888957,0.00046783,87541.0,87528.0,0.0002]
[1769392888958,0.00046783,87541.0,87530.0,1.11224022]
[1769392889428,0.0114223,87548.0,87529.0,0.23805001]
[1769392889693,0.0114223,87548.0,87532.0,0.23805001]
[1769392889895,0.01142217,87549.0,87534.0,1.11224022]
[1769392890026,0.01142256,87546.0,87536.0,1.11224022]
[1769392890235,0.01142217,87549.0,87536.0,1.11224022]
[1769392890666,0.06853369,87549.0,87536.0,1.11224022]
[1769392890865,0.01142269,87545.0,87536.0,1.11224022]
[1769392891452,0.01142295,87543.0,87535.0,0.23805001]
[1769392891650,0.01142308,87542.0,87531.0,1.11224022]
[1769392891876,0.05712392,87529.0,87528.0,1e-08]
[1769392892077,0.02142452,87531.0,87519.0,0.0002]
[1769392892078,0.06841203,87525.0,87519.0,0.0002]
[1769392892305,0.01128539,87525.0,87519.0,0.0002]
[1769392892477,0.06841204,87525.0,87519.0,0.0002]
[1769392892853,0.05712784,87523.0,87522.0,5e-05]
[1769392893114,0.01142609,87519.0,87512.0,3.5e-07]
[1769392893528,0.01142595,87520.0,87512.0,3.5e-07]
[1769392893719,0.01142569,87522.0,87512.0,3.5e-07]
[1769392893935,0.0001,87522.0,87512.0,3.5e-07]
[1769392894155,0.0001,87522.0,87512.0,1.1053425]
[1769392894374,0.01142387,87536.0,87516.0,1.10534215]
[1769392894375,0.01142426,87533.0,87516.0,1.10534215]
[1769392894592,0.01142374,87537.0,87519.0,0.23622762]
[1769392894871,0.01142374,87537.0,87512.0,3.5e-07]
[1769392894872,0.04568,87562.0,87529.0,0.23622762]
[1769392895101,0.01142165,87553.0,87533.0,0.23622762]
[1769392895318,0.00600011,87552.0,87536.0,1.10534215]
[1769392895527,0.01142191,87551.0,87537.0,0.23622762]
[1769392895735,0.00600011,87550.0,87537.0,0.23622762]
[1769392895980,0.00600011,87552.0,87537.0,0.23622762]
[1769392896171,0.00600011,87552.0,87538.0,1.10534215]
[1769392896369,0.01142191,87551.0,87538.0,1.10534215]
[1769392896602,0.00600011,87550.0,87538.0,1.10534215]
[1769392896804,0.00600011,87551.0,87538.0,1.10534215]
[1769392896960,0.00600011,87551.0,87537.0,0.23622762]
[1769392897510,0.01142204,87550.0,87537.0,0.23622762]
[1769392897688,0.01142243,87547.0,87537.0,0.23622762]
[1769392897889,0.01142282,87544.0,87537.0,0.23622762]
[1769392898151,0.01142308,87542.0,87528.0,0.23622762]
[1769392898287,0.01742332,87541.0,87528.0,0.23622762]
[1769392898517,0.00600011,87541.0,87528.0,0.23622762]
[1769392898708,0.00600011,87541.0,87517.0,1.10534215]
[1769392898709,0.01142374,87537.0,87517.0,1.10534215]
[1769392899045,0.01142374,87537.0,87511.0,0.05710713]
[1769392899046,0.00600011,87536.0,87522.0,0.23622762]
[1769392899254,0.01142413,87534.0,87523.0,1.34156977]
[1769392899457,0.01142452,87531.0,87523.0,0.23622762]
[1769392899866,0.00600011,87533.0,87523.0,0.23622762]
[1769392900289,0.00600011,87536.0,87523.0,1.34156977]
[1769392900497,0.00600011,87536.0,87525.0,1.10534215]
[1769392900707,0.00600011,87538.0,87527.0,0.23622762]
[1769392900919,0.00600011,87537.0,87529.0,1.10534215]
[1769392901127,0.00046792,87537.0,87530.0,0.23622762]
[1769392901338,0.00046792,87537.0,87531.0,1.10534215]
[1769392901723,0.00046792,87537.0,87530.0,0.23622762]
[1769392903172,0.00046792,87537.0,87530.0,1.34156977]
[1769392903372,0.00046792,87537.0,87515.0,0.05713302]
[1769392903373,0.01142491,87528.0,87510.0,1.10534215]
[1769392903593,0.01742502,87528.0,87512.0,1.1053425]
[1769392903794,0.01742502,87528.0,87513.0,0.23622762]
[1769392903999,0.00600011,87528.0,87514.0,0.23622762]
[1769392904196,0.00650945,87530.0,87514.0,0.23622762]
[1769392904197,0.01742489,87529.0,87514.0,0.23622762]
[1769392904369,0.00600011,87529.0,87514.0,0.23622762]
[1769392904579,0.00600011,87529.0,87500.0,0.0002]
[1769392904580,1.09236075,87521.0,87484.0,1e-08]
[1769392904800,0.0521469,87528.0,87463.0,0.0002]
[1769392904801,0.01142909,87496.0,87474.0,0.23622762]
[1769392905003,1.32262747,87502.0,87477.0,1.10534215]
[1769392905004,0.01142883,87498.0,87477.0,1.10534215]
[1769392905190,0.22224521,87502.0,87470.0,0.03882522]
[1769392905191,0.05223093,87497.0,87480.0,0.23622762]
[1769392905382,0.01142817,87503.0,87483.0,1.10534215]
[1769392905606,0.01142791,87505.0,87472.0,0.01143222]
[1769392905607,0.06365924,87502.0,87486.0,0.23622762]
[1769392905839,0.05714831,87502.0,87486.0,1.34156977]
[1769392906086,0.01142831,87502.0,87486.0,1.34171018]
[1769392906289,0.05714831,87502.0,87486.0,1.34171018]
[1769392906500,0.22224521,87517.0,87495.0,0.01142922]
[1769392906669,0.26796521,87523.0,87500.0,0.42706314]
[1769392906868,0.00600011,87522.0,87504.0,0.23622762]
[1769392907070,0.00600011,87522.0,87507.0,1.10534215]
[1769392907277,0.00600011,87522.0,87508.0,0.23622762]
[1769392907450,0.00600011,87522.0,87510.0,0.23622762]
[1769392907926,0.00600011,87522.0,87511.0,1.10534215]
[1769392908165,0.01751706,87531.0,87512.0,1.12625208]
[1769392908341,0.01142452,87531.0,87514.0,1.10534215]
[1769392908545,0.01142452,87531.0,87496.0,0.22858052]
[1769392908546,0.01142308,87542.0,87522.0,1.10534215]
[1769392908770,0.06471037,87541.0,87524.0,1.34156977]
[1769392908975,0.01142295,87543.0,87524.0,1.34156977]
[1769392908976,0.05119948,87540.0,87524.0,1.34156977]
[1769392909169,0.01142321,87541.0,87525.0,1.10534215]
[1769392909377,0.01142387,87536.0,87514.0,1.10534215]
[1769392909576,0.00046792,87536.0,87517.0,0.23622762]
[1769392909915,0.011424,87535.0,87521.0,1.34156977]
[1769392910103,0.01189179,87536.0,87521.0,1.34156977]
[1769392910311,0.01142413,87534.0,87521.0,1.34156977]
[1769392910519,0.01142426,87533.0,87521.0,1.34156977]
[1769392910663,0.01142413,87534.0,87521.0,1.10534215]
[1769392910864,0.01142413,87534.0,87515.0,0.23622762]
[1769392910865,0.01142426,87533.0,87515.0,1.34156977]
[1769392911096,0.01142452,87531.0,87515.0,1.34156977]
[1769392911265,0.00046792,87536.0,87472.0,0.23622762]
[1769392911266,0.01,87515.0,87472.0,0.23622762]
[1769392911468,0.01,87515.0,87463.0,0.0002]
[1769392911469,0.01142726,87510.0,87484.0,1.10534215]
[1769392911670,0.01142726,87510.0,87488.0,1.10534215]
[1769392911871,0.01142739,87509.0,87489.0,1.10534215]
[1769392912094,0.01142739,87509.0,87484.0,0.01143066]
[1769392912095,0.011427,87512.0,87492.0,0.23622762]
[1769392912412,0.01142778,87506.0,87493.0,1.34156977]
[1769392912645,0.01142791,87505.0,87484.0,1.10534215]
[1769392912820,0.01142791,87505.0,87486.0,1.10534215]
[1769392912979,0.01142791,87505.0,87486.0,1.10548256]
[1769392913189,0.01142752,87508.0,87486.0,1.10548256]
[1769392913399,0.01142726,87510.0,87488.0,1.10534215]
[1769392913628,0.04572,87514.0,87493.0,1.10534215]
[1769392913810,0.04572,87514.0,87495.0,1.10534215]
[1769392914249,0.01142713,87511.0,87494.0,0.23622762]
[1769392914454,0.01142556,87523.0,87500.0,0.42795215]
[1769392914680,0.31958939,87541.0,87507.0,0.01142765]
[1769392914681,0.04572,87529.0,87507.0,0.01142765]
[1769392914917,0.04572,87529.0,87512.0,0.23622762]
[1769392915166,0.04572,87529.0,87513.0,1.10534215]
[1769392915846,0.01142491,87528.0,87513.0,1.10534215]
[1769392916066,0.01142452,87531.0,87513.0,1.10534215]
[1769392916284,0.05714426,87533.0,87513.0,1.10534215]
[1769392916501,0.01142517,87526.0,87512.0,0.23622762]
[1769392916725,0.00613782,87532.0,87512.0,0.23622762]
[1769392916947,0.01142452,87531.0,87512.0,0.23622762]
[1769392917184,0.01142465,87530.0,87512.0,0.23622762]
[1769392917389,0.01142478,87529.0,87512.0,0.23622762]
[1769392917613,0.01142491,87528.0,87512.0,0.23622762]
[1769392917820,0.01142517,87526.0,87506.0,1.10534215]
[1769392918023,0.0114253,87525.0,87506.0,1.34171018]
[1769392918438,0.01142517,87526.0,87506.0,1.34171018]
[1769392918636,0.0114253,87525.0,87506.0,1.34171018]
[1769392918896,0.01142504,87527.0,87508.0,1.10534215]
[1769392919186,0.01142543,87524.0,87508.0,1.10534215]
[1769392919416,0.0114253,87525.0,87508.0,1.10534215]
[1769392919631,0.01142543,87524.0,87508.0,1.10534215]
[1769392920061,0.01142556,87523.0,87507.0,0.23622762]
[1769392920280,0.01142543,87524.0,87507.0,0.23622762]
[1769392920489,0.22224521,87527.0,87507.0,0.23622762]
[1769392920701,0.22224521,87527.0,87508.0,1.12494399]
[1769392920921,0.22224521,87527.0,87508.0,1.10534215]
[1769392921140,0.22224521,87527.0,87510.0,1.10534215]
[1769392921345,0.22224521,87527.0,87511.0,1.12494345]
[1769392921517,0.22224521,87527.0,87511.0,1.10534215]
[1769392922303,0.22224521,87527.0,87511.0,1.34156977]
[1769392922694,0.22224521,87527.0,87513.0,1.10534215]
[1769392923285,0.00613782,87532.0,87513.0,1.33104865]
[1769392923539,0.00613782,87532.0,87513.0,1.27615865]
[1769392923761,0.06047892,87531.0,87513.0,1.27615865]
[1769392923915,0.01142282,87544.0,87513.0,1.05045215]
[1769392924117,0.01142282,87544.0,87523.0,1.05749062]
[1769392924118,0.01142361,87538.0,87523.0,1.05749062]
[1769392924318,0.01142361,87538.0,87523.0,1.28319712]
[1769392924520,0.01142334,87540.0,87524.0,0.2257065]
[1769392924720,0.06047892,87542.0,87524.0,1.05749062]
[1769392924926,0.071902,87542.0,87526.0,1.05749062]
[1769392925126,0.01142321,87541.0,87526.0,1.05749062]
[1769392925335,0.01142243,87547.0,87527.0,0.2257065]
[1769392925535,0.01142269,87545.0,87531.0,0.2257065]
[1769392925793,0.11397973,87544.0,87532.0,1.25971712]
[1769392926011,0.01142256,87546.0,87532.0,0.2257065]
[1769392926139,0.11397602,87545.0,87532.0,0.2257065]
[1769392926343,0.2417462,87549.0,87532.0,0.2257065]
[1769392926573,0.01142256,87546.0,87532.0,0.2257065]
[1769392926773,0.0114223,87548.0,87532.0,0.2257065]
[1769392926973,0.12540312,87547.0,87532.0,0.2257065]
[1769392927154,0.12540325,87546.0,87532.0,0.2257065]
[1769392927352,0.01142256,87546.0,87532.0,0.2257065]
[1769392927569,0.32622432,87524.0,87493.0,1.05173614]
[1769392927780,0.01142582,87521.0,87498.0,1.05749062]
[1769392928011,0.01142582,87521.0,87502.0,1.05749062]
[1769392928181,0.24174972,87522.0,87503.0,0.2257065]
[1769392928379,0.23032403,87522.0,87504.0,0.2257065]
[1769392928581,0.00014036,87524.0,87505.0,1.05749062]
[1769392928821,0.00014036,87524.0,87507.0,1.05749062]
[1769392929023,0.00014036,87524.0,87508.0,0.2257065]
[1769392929236,0.00014036,87524.0,87511.0,1.05749062]
[1769392929405,0.00014036,87524.0,87511.0,1.28319712]
[1769392929711,0.04572,87532.0,87502.0,0.09596249]
[1769392929712,0.04572,87541.0,87518.0,0.2257065]
[1769392929913,0.01142374,87537.0,87521.0,1.05749062]
[1769392930129,0.23079224,87541.0,87521.0,1.05749062]
[1769392930347,0.00046821,87541.0,87525.0,1.05749062]
[1769392930544,0.00046821,87541.0,87527.0,1.28319712]
[1769392932303,0.00046821,87541.0,87527.0,1.05749062]